[Event "Late-Titled-Tuesday-Blitz-February-06-2024"]
[Site "Chess.com"]
[Date "2024.02.06"]
[Round "10"]
[White "Zavgorodniy_Sergiy"]
[Black "tgpgoat"]
[Result "1-0"]
[WhiteElo "2598"]
[BlackElo "2474"]
[TimeControl "180+1"]
[EndTime "15:52:31 PST"]
[Termination "Zavgorodniy_Sergiy won by resignation"]

1. d4 {[%clk 0:02:56.3]} 1... Nf6 {[%clk 0:02:58.8]} 2. c4 {[%clk 0:02:54.7]}
2... c5 {[%clk 0:02:59.3]} 3. d5 {[%clk 0:02:53.3]} 3... b5 {[%clk 0:02:59.4]}
4. Nf3 {[%clk 0:02:53.7]} 4... bxc4 {[%clk 0:02:59.8]} 5. Nc3 {[%clk 0:02:53.7]}
5... d6 {[%clk 0:03:00.2]} 6. e4 {[%clk 0:02:53.7]} 6... g6 {[%clk 0:03:00.9]}
7. Bxc4 {[%clk 0:02:53.9]} 7... Bg7 {[%clk 0:03:01.4]} 8. e5 {[%clk 0:02:54.5]}
8... dxe5 {[%clk 0:03:01.4]} 9. Nxe5 {[%clk 0:02:55.4]} 9... O-O {[%clk
0:03:01.3]} 10. O-O {[%clk 0:02:55.7]} 10... Bb7 {[%clk 0:02:56.8]} 11. Nxf7
{[%clk 0:02:49.7]} 11... Rxf7 {[%clk 0:02:54.2]} 12. d6 {[%clk 0:02:49.9]} 12...
exd6 {[%clk 0:02:52.9]} 13. Bxf7+ {[%clk 0:02:50]} 13... Kxf7 {[%clk 0:02:53.8]}
14. Qb3+ {[%clk 0:02:50.1]} 14... Kf8 {[%clk 0:02:44.5]} 15. Qxb7 {[%clk
0:02:50]} 15... Nbd7 {[%clk 0:02:45.4]} 16. Bf4 {[%clk 0:02:48.5]} 16... Ne8
{[%clk 0:02:42.8]} 17. Rad1 {[%clk 0:02:39.5]} 17... Rb8 {[%clk 0:02:42.7]} 18.
Qxa7 {[%clk 0:02:35.9]} 18... Rxb2 {[%clk 0:02:41.9]} 19. Bxd6+ {[%clk
0:02:34.3]} 19... Nxd6 {[%clk 0:02:39.4]} 20. Rxd6 {[%clk 0:02:35.2]} 20... Bxc3
{[%clk 0:02:34]} 21. Rxd7 {[%clk 0:02:32.7]} 21... Qc8 {[%clk 0:02:28.4]} 22.
Rxh7 {[%clk 0:02:27.9]} 22... Qe6 {[%clk 0:02:14.6]} 23. Qa8+ {[%clk 0:02:24.9]}
23... Qe8 {[%clk 0:02:12.6]} 24. Qd5 {[%clk 0:02:19.1]} 24... Bd4 {[%clk
0:02:03.7]} 25. Rd7 {[%clk 0:02:11.8]} 25... Rb8 {[%clk 0:01:47.5]} 26. a4
{[%clk 0:01:43.7]} 26... Ra8 {[%clk 0:01:34.6]} 27. a5 {[%clk 0:01:41.9]} 27...
Rb8 {[%clk 0:01:31.8]} 28. a6 {[%clk 0:01:41.4]} 28... Ra8 {[%clk 0:01:32.2]}
29. a7 {[%clk 0:01:38.7]} 29... Rc8 {[%clk 0:01:32.6]} 30. Rb1 {[%clk
0:01:32.6]} 30... Bf6 {[%clk 0:01:24.2]} 31. g3 {[%clk 0:01:20.8]} 31... Be7
{[%clk 0:01:17.9]} 32. Qe6 {[%clk 0:01:11.4]} 32... Rd8 {[%clk 0:01:05.8]} 1-0

[Event "Late-Titled-Tuesday-Blitz-February-06-2024"]
[Site "Chess.com"]
[Date "2024.02.06"]
[Round "10"]
[White "Zallio"]
[Black "Schattman"]
[Result "0-1"]
[WhiteElo "2158"]
[BlackElo "2389"]
[TimeControl "180+1"]
[EndTime "15:52:31 PST"]
[Termination "Schattman won by resignation"]

1. d4 {[%clk 0:03:00.9]} 1... d6 {[%clk 0:02:58.8]} 2. e4 {[%clk 0:03:00.5]}
2... Nf6 {[%clk 0:02:58.2]} 3. Nc3 {[%clk 0:03:00.8]} 3... g6 {[%clk 0:02:58.6]}
4. f4 {[%clk 0:03:00.7]} 4... Bg7 {[%clk 0:02:54.8]} 5. Nf3 {[%clk 0:03:01]}
5... Nc6 {[%clk 0:02:54.7]} 6. Be3 {[%clk 0:02:51.2]} 6... e5 {[%clk 0:02:51.6]}
7. Qd2 {[%clk 0:02:49.9]} 7... exd4 {[%clk 0:02:42.3]} 8. Nxd4 {[%clk
0:02:50.8]} 8... O-O {[%clk 0:02:31.5]} 9. O-O-O {[%clk 0:02:48.7]} 9... Re8
{[%clk 0:02:28.2]} 10. Bd3 {[%clk 0:02:45.7]} 10... Ng4 {[%clk 0:02:05]} 11.
Nxc6 {[%clk 0:02:41.4]} 11... bxc6 {[%clk 0:02:05.1]} 12. Bg1 {[%clk 0:02:37.4]}
12... Rb8 {[%clk 0:02:02.2]} 13. h3 {[%clk 0:02:34.4]} 13... Nf6 {[%clk
0:01:55.5]} 14. Bxa7 {[%clk 0:02:33.2]} 14... Ra8 {[%clk 0:01:54.3]} 15. Bd4
{[%clk 0:02:24.2]} 15... c5 {[%clk 0:01:54.3]} 16. Bf2 {[%clk 0:02:12.4]} 16...
Nd7 {[%clk 0:01:39]} 17. a3 {[%clk 0:01:47.4]} 17... Nb6 {[%clk 0:01:35.7]} 18.
Bb5 {[%clk 0:01:41.5]} 18... Bd7 {[%clk 0:01:34.9]} 19. Bxd7 {[%clk 0:01:39.8]}
19... Qxd7 {[%clk 0:01:34.4]} 20. Rhe1 {[%clk 0:01:33.9]} 20... Reb8 {[%clk
0:01:32.4]} 21. Qe2 {[%clk 0:01:26.4]} 21... Bxc3 {[%clk 0:01:21.4]} 22. bxc3
{[%clk 0:01:26]} 22... Rxa3 {[%clk 0:01:18.4]} 23. Bxc5 {[%clk 0:01:15.6]} 23...
Ra1+ {[%clk 0:01:09.5]} 24. Kb2 {[%clk 0:01:14.6]} 24... Nc4+ {[%clk 0:01:01]}
0-1

[Event "Late-Titled-Tuesday-Blitz-February-06-2024"]
[Site "Chess.com"]
[Date "2024.02.06"]
[Round "10"]
[White "Der_Balak_3Halak"]
[Black "balachess2006"]
[Result "0-1"]
[WhiteElo "2526"]
[BlackElo "2701"]
[TimeControl "180+1"]
[EndTime "15:52:32 PST"]
[Termination "balachess2006 won by resignation"]

1. Nf3 {[%clk 0:03:00.9]} 1... Nf6 {[%clk 0:02:57.6]} 2. g3 {[%clk 0:03:01.8]}
2... g6 {[%clk 0:02:57.5]} 3. Bg2 {[%clk 0:03:01.4]} 3... Bg7 {[%clk 0:02:58.4]}
4. O-O {[%clk 0:03:02]} 4... O-O {[%clk 0:02:59.2]} 5. d3 {[%clk 0:03:02.6]}
5... d5 {[%clk 0:02:59.2]} 6. Nbd2 {[%clk 0:03:01.9]} 6... c5 {[%clk 0:03:00.1]}
7. Re1 {[%clk 0:03:02.4]} 7... Nc6 {[%clk 0:03:01]} 8. e4 {[%clk 0:03:03.1]}
8... e5 {[%clk 0:03:00.6]} 9. exd5 {[%clk 0:03:02.5]} 9... Nxd5 {[%clk
0:03:01.5]} 10. Nc4 {[%clk 0:03:03]} 10... Re8 {[%clk 0:02:58.8]} 11. Bg5 {[%clk
0:03:01.7]} 11... f6 {[%clk 0:02:56.5]} 12. Bd2 {[%clk 0:03:01.9]} 12... Be6
{[%clk 0:02:56.2]} 13. a4 {[%clk 0:03:01.2]} 13... Bf7 {[%clk 0:02:55.5]} 14.
Ne3 {[%clk 0:02:54.4]} 14... Ndb4 {[%clk 0:02:54.8]} 15. h4 {[%clk 0:02:49.3]}
15... h5 {[%clk 0:02:53.6]} 16. Bc3 {[%clk 0:02:37.3]} 16... Qd7 {[%clk
0:02:50.8]} 17. Nd2 {[%clk 0:02:36.7]} 17... Rad8 {[%clk 0:02:48.1]} 18. Ne4
{[%clk 0:02:37.1]} 18... b6 {[%clk 0:02:45.1]} 19. Qf3 {[%clk 0:02:22]} 19... f5
{[%clk 0:02:34.3]} 20. Ng5 {[%clk 0:02:22.2]} 20... Nd4 {[%clk 0:02:34.3]} 21.
Bxd4 {[%clk 0:02:18.3]} 21... cxd4 {[%clk 0:02:33.3]} 22. Nxf7 {[%clk
0:01:45.6]} 22... Qxf7 {[%clk 0:02:32]} 23. Nc4 {[%clk 0:00:57.2]} 23... Nxc2
{[%clk 0:02:24.4]} 24. Qc6 {[%clk 0:00:55.8]} 24... Nb4 {[%clk 0:02:11.4]} 25.
Qb5 {[%clk 0:00:42.4]} 25... Nxd3 {[%clk 0:02:10.9]} 26. Nd6 {[%clk 0:00:30.2]}
26... Rxd6 {[%clk 0:02:07.8]} 27. Qxd3 {[%clk 0:00:29.6]} 27... e4 {[%clk
0:02:08.2]} 28. Qb5 {[%clk 0:00:28.4]} 28... d3 {[%clk 0:02:06]} 29. Rad1 {[%clk
0:00:25.6]} 29... Red8 {[%clk 0:02:05.2]} 30. Bf1 {[%clk 0:00:20.1]} 30... Bd4
{[%clk 0:02:04.1]} 31. Kg2 {[%clk 0:00:16.6]} 31... Kg7 {[%clk 0:02:03.9]} 32.
Qc4 {[%clk 0:00:13.9]} 32... Qxc4 {[%clk 0:02:02.7]} 0-1

[Event "Late-Titled-Tuesday-Blitz-February-06-2024"]
[Site "Chess.com"]
[Date "2024.02.06"]
[Round "10"]
[White "Walter_White_Poland"]
[Black "pinguino120"]
[Result "0-1"]
[WhiteElo "2380"]
[BlackElo "2287"]
[TimeControl "180+1"]
[EndTime "15:52:47 PST"]
[Termination "pinguino120 won by resignation"]

1. d4 {[%clk 0:02:57.3]} 1... Nf6 {[%clk 0:02:56.8]} 2. Bf4 {[%clk 0:02:57.1]}
2... d5 {[%clk 0:02:52]} 3. e3 {[%clk 0:02:57]} 3... c5 {[%clk 0:02:52]} 4. c3
{[%clk 0:02:56.3]} 4... Nc6 {[%clk 0:02:52]} 5. Nd2 {[%clk 0:02:56]} 5... Bf5
{[%clk 0:02:50.7]} 6. Ngf3 {[%clk 0:02:50.3]} 6... Qb6 {[%clk 0:02:49.1]} 7. Qb3
{[%clk 0:02:50]} 7... c4 {[%clk 0:02:49.2]} 8. Qxb6 {[%clk 0:02:44.7]} 8... axb6
{[%clk 0:02:50.1]} 9. a3 {[%clk 0:02:43.4]} 9... b5 {[%clk 0:02:50]} 10. Rc1
{[%clk 0:02:43.2]} 10... e6 {[%clk 0:02:45.9]} 11. h3 {[%clk 0:02:42.9]} 11...
h6 {[%clk 0:02:45.6]} 12. g4 {[%clk 0:02:42.4]} 12... Bh7 {[%clk 0:02:43.1]} 13.
Bg2 {[%clk 0:02:41.4]} 13... Be7 {[%clk 0:02:42.8]} 14. Ne5 {[%clk 0:02:41.1]}
14... Nxe5 {[%clk 0:02:40.4]} 15. Bxe5 {[%clk 0:02:40.8]} 15... O-O {[%clk
0:02:39.7]} 16. Bg3 {[%clk 0:02:33.8]} 16... Rfd8 {[%clk 0:02:38.2]} 17. f3
{[%clk 0:02:25]} 17... Bd6 {[%clk 0:02:36.2]} 18. Kf2 {[%clk 0:02:24.6]} 18...
Bxg3+ {[%clk 0:02:28.1]} 19. Kxg3 {[%clk 0:02:25.5]} 19... Re8 {[%clk
0:02:20.4]} 20. f4 {[%clk 0:02:09.9]} 20... Ne4+ {[%clk 0:02:00.3]} 21. Nxe4
{[%clk 0:02:00]} 21... Bxe4 {[%clk 0:02:01.2]} 22. Bxe4 {[%clk 0:01:58.1]} 22...
dxe4 {[%clk 0:02:02.1]} 23. Rcf1 {[%clk 0:01:47]} 23... g6 {[%clk 0:01:58.2]}
24. h4 {[%clk 0:01:42.5]} 24... f5 {[%clk 0:01:57.6]} 25. h5 {[%clk 0:01:40.1]}
25... Kf7 {[%clk 0:01:52.7]} 26. hxg6+ {[%clk 0:01:36.9]} 26... Kxg6 {[%clk
0:01:52.6]} 27. Rh5 {[%clk 0:01:35.4]} 27... Rh8 {[%clk 0:01:41.6]} 28. Rfh1
{[%clk 0:01:34.5]} 28... Rh7 {[%clk 0:01:40.3]} 29. g5 {[%clk 0:01:20.9]} 29...
Rah8 {[%clk 0:01:38]} 30. Kh4 {[%clk 0:00:20.6]} 30... hxg5+ {[%clk 0:01:32.5]}
0-1

[Event "Late-Titled-Tuesday-Blitz-February-06-2024"]
[Site "Chess.com"]
[Date "2024.02.06"]
[Round "10"]
[White "DraningWaterHi"]
[Black "Korchmar_Vasiliy"]
[Result "0-1"]
[WhiteElo "2254"]
[BlackElo "2734"]
[TimeControl "180+1"]
[EndTime "15:53:01 PST"]
[Termination "Korchmar_Vasiliy won by resignation"]

1. d4 {[%clk 0:03:00.9]} 1... d5 {[%clk 0:02:59.7]} 2. c4 {[%clk 0:02:53.2]}
2... c6 {[%clk 0:03:00.1]} 3. Nf3 {[%clk 0:02:52.8]} 3... Nf6 {[%clk 0:03:00.1]}
4. g3 {[%clk 0:02:52.9]} 4... Bf5 {[%clk 0:02:57.3]} 5. Bg2 {[%clk 0:02:52.1]}
5... e6 {[%clk 0:02:57.7]} 6. O-O {[%clk 0:02:51.2]} 6... Nbd7 {[%clk
0:02:58.2]} 7. Qb3 {[%clk 0:02:49.3]} 7... Qc8 {[%clk 0:02:54.5]} 8. Nc3 {[%clk
0:02:47.1]} 8... Be7 {[%clk 0:02:52.5]} 9. Bf4 {[%clk 0:02:46.2]} 9... O-O
{[%clk 0:02:51]} 10. Rac1 {[%clk 0:02:42]} 10... dxc4 {[%clk 0:02:48.1]} 11.
Qxc4 {[%clk 0:02:41.8]} 11... Ne4 {[%clk 0:02:45.8]} 12. Ne5 {[%clk 0:02:37.1]}
12... Nxe5 {[%clk 0:02:44]} 13. Bxe5 {[%clk 0:02:37]} 13... Nd2 {[%clk
0:02:43.3]} 14. Qa4 {[%clk 0:02:32]} 14... Nxf1 {[%clk 0:02:41.9]} 15. Kxf1
{[%clk 0:02:32.9]} 15... Qd8 {[%clk 0:02:31.4]} 16. e4 {[%clk 0:02:32.7]} 16...
Bg6 {[%clk 0:02:31.3]} 17. Kg1 {[%clk 0:02:30.5]} 17... Bf6 {[%clk 0:02:26]} 18.
Rd1 {[%clk 0:02:24.4]} 18... Bxe5 {[%clk 0:02:19.3]} 19. dxe5 {[%clk 0:02:24]}
19... Qc7 {[%clk 0:02:19.1]} 20. Rd6 {[%clk 0:02:24.6]} 20... Rfd8 {[%clk
0:02:17.6]} 21. Qd4 {[%clk 0:02:25]} 21... Qb6 {[%clk 0:02:09.2]} 22. Qxb6
{[%clk 0:02:21.8]} 22... axb6 {[%clk 0:02:08.9]} 23. f4 {[%clk 0:02:22.4]} 23...
Rxd6 {[%clk 0:01:54.7]} 24. exd6 {[%clk 0:02:22.5]} 24... f6 {[%clk 0:01:55.4]}
25. e5 {[%clk 0:02:21]} 25... fxe5 {[%clk 0:01:56.3]} 26. fxe5 {[%clk
0:02:21.6]} 26... Ra5 {[%clk 0:01:56.2]} 27. b4 {[%clk 0:02:16.1]} 27... Ra3
{[%clk 0:01:51.6]} 28. d7 {[%clk 0:02:08.8]} 28... Ra8 {[%clk 0:01:50.6]} 29. b5
{[%clk 0:02:09]} 29... c5 {[%clk 0:01:25.3]} 30. Bxb7 {[%clk 0:02:08]} 30... Rd8
{[%clk 0:01:25.2]} 31. Bc6 {[%clk 0:02:08.1]} 31... Kf8 {[%clk 0:01:25.2]} 32.
Na4 {[%clk 0:02:04.3]} 32... c4 {[%clk 0:01:25.2]} 33. Kf2 {[%clk 0:02:00.9]}
33... Ke7 {[%clk 0:01:14.6]} 34. Ke3 {[%clk 0:01:57.4]} 34... Ra8 {[%clk
0:01:12.6]} 35. Nxb6 {[%clk 0:01:57.6]} 35... Ra3+ {[%clk 0:01:03.9]} 36. Kd4
{[%clk 0:01:56.1]} 36... c3 {[%clk 0:01:04.8]} 37. Nc8+ {[%clk 0:01:52.5]} 37...
Kd8 {[%clk 0:01:04.4]} 38. Nd6 {[%clk 0:01:51.3]} 38... Ke7 {[%clk 0:00:54.5]}
39. Nb7 {[%clk 0:01:47.8]} 39... Ra8 {[%clk 0:00:53.6]} 40. d8=Q+ {[%clk
0:01:47.7]} 40... Rxd8+ {[%clk 0:00:53.6]} 41. Nxd8 {[%clk 0:01:48.6]} 41... c2
{[%clk 0:00:53.7]} 42. b6 {[%clk 0:01:48.3]} 42... c1=Q {[%clk 0:00:53]} 43. b7
{[%clk 0:01:48.9]} 43... Qb2+ {[%clk 0:00:50.7]} 44. Kc5 {[%clk 0:01:49.1]}
44... Kxd8 {[%clk 0:00:50.4]} 45. Kd6 {[%clk 0:01:45.9]} 45... Be8 {[%clk
0:00:36]} 46. a4 {[%clk 0:01:43.7]} 46... Qb6 {[%clk 0:00:34.5]} 0-1

[Event "Late-Titled-Tuesday-Blitz-February-06-2024"]
[Site "Chess.com"]
[Date "2024.02.06"]
[Round "10"]
[White "FredddieCroderg"]
[Black "Horokoskii"]
[Result "1-0"]
[WhiteElo "2366"]
[BlackElo "2173"]
[TimeControl "180+1"]
[EndTime "15:53:24 PST"]
[Termination "FredddieCroderg won by resignation"]

1. e4 {[%clk 0:03:00.3]} 1... e6 {[%clk 0:02:55.8]} 2. d4 {[%clk 0:02:59.5]}
2... d5 {[%clk 0:02:53.7]} 3. exd5 {[%clk 0:03:00.4]} 3... exd5 {[%clk
0:02:53.6]} 4. Bd3 {[%clk 0:03:01.1]} 4... Bd6 {[%clk 0:02:54.1]} 5. Nf3 {[%clk
0:03:01.6]} 5... Ne7 {[%clk 0:02:54.5]} 6. O-O {[%clk 0:03:02]} 6... Bg4 {[%clk
0:02:54.4]} 7. Re1 {[%clk 0:03:01.2]} 7... Qd7 {[%clk 0:02:54.3]} 8. c3 {[%clk
0:03:01.2]} 8... Nc6 {[%clk 0:02:53.5]} 9. Nbd2 {[%clk 0:02:59.6]} 9... O-O-O
{[%clk 0:02:53.1]} 10. b4 {[%clk 0:02:58.7]} 10... f6 {[%clk 0:02:53]} 11. a4
{[%clk 0:02:58.7]} 11... g5 {[%clk 0:02:52.3]} 12. a5 {[%clk 0:02:58.8]} 12...
h5 {[%clk 0:02:52]} 13. b5 {[%clk 0:02:58.7]} 13... Nb8 {[%clk 0:02:52.5]} 14.
Nb3 {[%clk 0:02:57.9]} 14... h4 {[%clk 0:02:49.7]} 15. Nc5 {[%clk 0:02:57.4]}
15... Bxc5 {[%clk 0:02:49.4]} 16. dxc5 {[%clk 0:02:57.4]} 16... Rdg8 {[%clk
0:02:36.5]} 17. b6 {[%clk 0:02:51.4]} 17... a6 {[%clk 0:02:33.7]} 18. bxc7
{[%clk 0:02:50.8]} 18... Kxc7 {[%clk 0:02:33.9]} 19. Rb1 {[%clk 0:02:46.6]}
19... Nbc6 {[%clk 0:02:31]} 20. Qb3 {[%clk 0:02:44.5]} 20... Kc8 {[%clk
0:02:27.6]} 21. Nd4 {[%clk 0:02:29.6]} 21... Nxd4 {[%clk 0:02:24.9]} 22. cxd4
{[%clk 0:02:28.5]} 22... Nc6 {[%clk 0:02:24.9]} 23. Bxa6 {[%clk 0:02:00.1]}
23... bxa6 {[%clk 0:02:14.4]} 24. Qb6 {[%clk 0:01:59.5]} 24... Re8 {[%clk
0:01:33.2]} 25. Qxa6+ {[%clk 0:01:56.2]} 25... Kd8 {[%clk 0:01:33.3]} 26. Be3
{[%clk 0:01:44.6]} 26... Qc8 {[%clk 0:01:19.8]} 27. Rb7 {[%clk 0:01:33.5]} 27...
Re7 {[%clk 0:00:56.2]} 28. Qb6+ {[%clk 0:01:31.9]} 28... Ke8 {[%clk 0:00:56.1]}
29. a6 {[%clk 0:01:28.9]} 29... Rxb7 {[%clk 0:00:53]} 30. axb7 {[%clk
0:01:28.3]} 30... Qe6 {[%clk 0:00:42.1]} 31. Bd2 {[%clk 0:01:21.3]} 31... Qxe1+
{[%clk 0:00:28.3]} 32. Bxe1 {[%clk 0:01:19.4]} 32... Kd7 {[%clk 0:00:28.4]} 33.
Ba5 {[%clk 0:01:16.8]} 33... Nxd4 {[%clk 0:00:24.4]} 34. Qc7+ {[%clk 0:01:11.7]}
34... Ke6 {[%clk 0:00:23.7]} 35. b8=Q {[%clk 0:01:07.6]} 1-0

[Event "Late-Titled-Tuesday-Blitz-February-06-2024"]
[Site "Chess.com"]
[Date "2024.02.06"]
[Round "10"]
[White "katharinareinecke"]
[Black "Canal_Showdrez"]
[Result "0-1"]
[WhiteElo "1958"]
[BlackElo "2031"]
[TimeControl "180+1"]
[EndTime "15:53:26 PST"]
[Termination "Canal_Showdrez won by checkmate"]

1. e4 {[%clk 0:03:00.9]} 1... c5 {[%clk 0:02:59.1]} 2. Nf3 {[%clk 0:03:00]} 2...
Nc6 {[%clk 0:02:58.3]} 3. Bb5 {[%clk 0:02:59.5]} 3... e6 {[%clk 0:02:56.2]} 4.
Bxc6 {[%clk 0:02:49.2]} 4... bxc6 {[%clk 0:02:54.8]} 5. O-O {[%clk 0:02:41.9]}
5... g6 {[%clk 0:02:50.8]} 6. c3 {[%clk 0:02:38.6]} 6... Bg7 {[%clk 0:02:50.7]}
7. d4 {[%clk 0:02:36.8]} 7... cxd4 {[%clk 0:02:49.5]} 8. cxd4 {[%clk 0:02:36.9]}
8... d5 {[%clk 0:02:47.4]} 9. e5 {[%clk 0:02:32.8]} 9... Ne7 {[%clk 0:02:37.8]}
10. Nc3 {[%clk 0:02:24.2]} 10... O-O {[%clk 0:02:36.5]} 11. Na4 {[%clk
0:02:21.4]} 11... Rb8 {[%clk 0:02:19.1]} 12. Nc5 {[%clk 0:02:15.9]} 12... f6
{[%clk 0:02:17.2]} 13. Qc2 {[%clk 0:02:09.2]} 13... fxe5 {[%clk 0:02:15.8]} 14.
Nxe5 {[%clk 0:02:07.1]} 14... Bxe5 {[%clk 0:02:14.4]} 15. dxe5 {[%clk
0:02:07.1]} 15... Nf5 {[%clk 0:02:01.9]} 16. Qa4 {[%clk 0:01:37.1]} 16... Rb5
{[%clk 0:01:55.8]} 17. Qxa7 {[%clk 0:01:24.3]} 17... Qh4 {[%clk 0:01:55.3]} 18.
g3 {[%clk 0:00:57.5]} 18... Qd4 {[%clk 0:01:53.6]} 19. a4 {[%clk 0:00:38.3]}
19... Qxc5 {[%clk 0:01:45.1]} 20. axb5 {[%clk 0:00:37.9]} 20... Qxb5 {[%clk
0:01:34.9]} 21. Qa5 {[%clk 0:00:28.5]} 21... Qe2 {[%clk 0:01:30]} 22. Qd2 {[%clk
0:00:24.9]} 22... Qxe5 {[%clk 0:01:29]} 23. Ra7 {[%clk 0:00:22.2]} 23... Nd4
{[%clk 0:01:07.1]} 24. Kh1 {[%clk 0:00:14.3]} 24... Qe4+ {[%clk 0:01:05.5]} 25.
f3 {[%clk 0:00:13.6]} 25... Nxf3 {[%clk 0:01:01]} 26. Rxf3 {[%clk 0:00:12.6]}
26... Qxf3+ {[%clk 0:00:57.8]} 27. Kg1 {[%clk 0:00:12.8]} 27... Qf1# {[%clk
0:00:57.2]} 0-1

[Event "Late-Titled-Tuesday-Blitz-February-06-2024"]
[Site "Chess.com"]
[Date "2024.02.06"]
[Round "10"]
[White "DavidGavrilescu18"]
[Black "mishanick"]
[Result "0-1"]
[WhiteElo "2778"]
[BlackElo "3037"]
[TimeControl "180+1"]
[EndTime "15:53:35 PST"]
[Termination "mishanick won by resignation"]

1. e4 {[%clk 0:03:00.9]} 1... c5 {[%clk 0:02:59.5]} 2. Nf3 {[%clk 0:03:00.5]}
2... d6 {[%clk 0:02:59.5]} 3. d4 {[%clk 0:03:01]} 3... cxd4 {[%clk 0:03:00.4]}
4. Qxd4 {[%clk 0:03:01.6]} 4... Nf6 {[%clk 0:02:59.7]} 5. Be2 {[%clk 0:03:01.3]}
5... g6 {[%clk 0:02:59.3]} 6. O-O {[%clk 0:03:00.8]} 6... Bg7 {[%clk 0:03:00]}
7. h3 {[%clk 0:02:59.3]} 7... O-O {[%clk 0:03:00.3]} 8. Qe3 {[%clk 0:02:59.2]}
8... Be6 {[%clk 0:02:58.5]} 9. c4 {[%clk 0:02:59.2]} 9... Qb6 {[%clk 0:02:55.9]}
10. Qxb6 {[%clk 0:02:45.8]} 10... axb6 {[%clk 0:02:55.7]} 11. Nc3 {[%clk
0:02:46.7]} 11... Nfd7 {[%clk 0:02:55.9]} 12. Nd5 {[%clk 0:02:28.9]} 12... Bxd5
{[%clk 0:02:55.6]} 13. cxd5 {[%clk 0:02:22.5]} 13... Nc5 {[%clk 0:02:56.2]} 14.
Bg5 {[%clk 0:02:19.5]} 14... Bxb2 {[%clk 0:02:52]} 15. Rab1 {[%clk 0:02:18.9]}
15... Bf6 {[%clk 0:02:52.5]} 16. Bxf6 {[%clk 0:02:14.5]} 16... exf6 {[%clk
0:02:53.4]} 17. Rxb6 {[%clk 0:02:14.7]} 17... Rxa2 {[%clk 0:02:53]} 18. Bc4
{[%clk 0:02:06.9]} 18... Rc2 {[%clk 0:02:48.5]} 19. Bb5 {[%clk 0:02:01]} 19...
Rb2 {[%clk 0:02:48.7]} 20. Nd4 {[%clk 0:02:01.3]} 20... Rd8 {[%clk 0:02:47.6]}
21. Rc1 {[%clk 0:01:50.7]} 21... Kf8 {[%clk 0:02:42.8]} 22. f3 {[%clk 0:01:43]}
22... Ke7 {[%clk 0:02:42.4]} 23. Rxc5 {[%clk 0:01:33.9]} 23... dxc5 {[%clk
0:02:39.1]} 24. Rxb7+ {[%clk 0:01:34.5]} 24... Kd6 {[%clk 0:02:32.1]} 25. Nc6
{[%clk 0:01:30.2]} 25... Nxc6 {[%clk 0:02:26.1]} 26. dxc6 {[%clk 0:01:31.1]}
26... Rxb5 {[%clk 0:02:21.6]} 27. c7 {[%clk 0:01:20.7]} 27... Rc8 {[%clk
0:02:17]} 28. Rxb5 {[%clk 0:01:20.7]} 28... Rxc7 {[%clk 0:02:16.3]} 29. Kf2
{[%clk 0:01:20.8]} 29... Kc6 {[%clk 0:02:16.8]} 30. Ra5 {[%clk 0:01:17.9]} 30...
Kb6 {[%clk 0:02:16.9]} 31. Ra8 {[%clk 0:01:18]} 31... c4 {[%clk 0:02:16.8]} 32.
Ke2 {[%clk 0:01:17.3]} 32... Rd7 {[%clk 0:02:16.7]} 33. Rb8+ {[%clk 0:01:01.5]}
33... Kc5 {[%clk 0:02:16.7]} 34. f4 {[%clk 0:00:57.4]} 34... Kd4 {[%clk
0:02:16]} 35. Rc8 {[%clk 0:00:53.6]} 35... c3 {[%clk 0:02:15.1]} 36. g4 {[%clk
0:00:51.5]} 36... Rb7 {[%clk 0:01:59]} 37. e5 {[%clk 0:00:40.5]} 37... fxe5
{[%clk 0:01:58.3]} 38. fxe5 {[%clk 0:00:41.4]} 38... Re7 {[%clk 0:01:57.9]} 39.
Rd8+ {[%clk 0:00:41.5]} 39... Kxe5 {[%clk 0:01:56.6]} 40. Kd3 {[%clk 0:00:41.4]}
40... Kf4 {[%clk 0:01:57.3]} 41. Kxc3 {[%clk 0:00:38.4]} 41... Re3+ {[%clk
0:01:57.7]} 42. Kd4 {[%clk 0:00:38.8]} 42... Rxh3 {[%clk 0:01:58.3]} 43. Rf8
{[%clk 0:00:39.4]} 43... Kxg4 {[%clk 0:01:58]} 44. Rxf7 {[%clk 0:00:39.9]} 44...
h5 {[%clk 0:01:58]} 45. Ke4 {[%clk 0:00:40.2]} 45... g5 {[%clk 0:01:58.7]} 46.
Rf1 {[%clk 0:00:40]} 46... Rg3 {[%clk 0:01:59.3]} 47. Rb1 {[%clk 0:00:37.1]}
47... h4 {[%clk 0:01:59.6]} 48. Ke5 {[%clk 0:00:37.7]} 48... h3 {[%clk
0:01:59.9]} 49. Rb4+ {[%clk 0:00:37.5]} 49... Kh5 {[%clk 0:01:59.8]} 50. Rb8
{[%clk 0:00:37.5]} 50... Rf3 {[%clk 0:02:00.1]} 51. Ke4 {[%clk 0:00:36]} 51...
g4 {[%clk 0:02:00.4]} 52. Rh8+ {[%clk 0:00:35.2]} 52... Kg5 {[%clk 0:02:00.8]}
53. Rh7 {[%clk 0:00:35.2]} 53... Rf2 {[%clk 0:01:59.7]} 54. Ke3 {[%clk
0:00:35.1]} 54... Ra2 {[%clk 0:02:00]} 55. Rh8 {[%clk 0:00:34.7]} 55... h2
{[%clk 0:02:00.3]} 56. Ke4 {[%clk 0:00:32.7]} 56... Re2+ {[%clk 0:01:58.7]} 57.
Kd3 {[%clk 0:00:32.8]} 57... Rf2 {[%clk 0:01:59.3]} 58. Ke3 {[%clk 0:00:33]}
58... g3 {[%clk 0:01:59.5]} 59. Rh7 {[%clk 0:00:26.2]} 59... Kg4 {[%clk
0:01:58.9]} 60. Rh8 {[%clk 0:00:25.6]} 60... Rf1 {[%clk 0:01:59.4]} 61. Ke2
{[%clk 0:00:24.1]} 61... h1=Q {[%clk 0:01:59.7]} 62. Rg8+ {[%clk 0:00:23.3]}
62... Kh3 {[%clk 0:01:59.6]} 63. Rh8+ {[%clk 0:00:23.4]} 63... Kg2 {[%clk
0:02:00.2]} 0-1